bitfinex-derivatives/quotes_BTCF0:USTF0_20241218
["timestamp","ask_amount","ask_price","bid_price","bid_amount"]
[1734491666261,0.06369905,104820.0,104810.0,0.047706]
[1734491666761,0.06369905,104820.0,104810.0,0.408506]
[1734491666952,0.01006916,104820.0,104810.0,0.408506]
[1734491669163,0.51172662,104830.0,104820.0,0.047702]
[1734491669759,0.44814733,104830.0,104820.0,0.047702]
[1734491670161,0.08734733,104830.0,104820.0,0.408502]
[1734491671964,0.0713,104830.0,104820.0,0.408502]
[1734491672162,0.0713,104830.0,104820.0,0.047702]
[1734491672668,0.0713,104830.0,104820.0,0.408502]
[1734491674862,0.16197776,104840.0,104820.0,0.408502]
[1734491675065,0.16197776,104840.0,104830.0,0.047697]
[1734491675466,0.09297776,104840.0,104830.0,0.408497]
[1734491675670,0.00011661,104840.0,104830.0,0.408497]
[1734491675869,0.00011661,104840.0,104830.0,0.47207629]
[1734491676171,0.00011661,104840.0,104830.0,0.551197]
[1734491678069,0.00011661,104840.0,104830.0,0.61477629]
[1734491679270,0.00011661,104840.0,104830.0,0.63084923]
[1734491681169,0.00011661,104840.0,104830.0,0.56726994]
[1734491682378,0.00011661,104840.0,104830.0,0.63084923]
[1734491683268,0.00011661,104840.0,104830.0,0.56726994]
[1734491683876,0.00011661,104840.0,104810.0,0.44996138]
[1734491683877,0.4244959,104840.0,104810.0,0.44996138]
[1734491684175,0.42437929,104830.0,104800.0,0.43236994]
[1734491684370,0.42437929,104830.0,104810.0,0.047702]
[1734491684371,0.0737,104820.0,104810.0,0.047702]
[1734491684571,0.08365033,104820.0,104810.0,0.047702]
[1734491684969,0.02007104,104820.0,104810.0,0.047702]
[1734491690576,0.02007104,104820.0,104810.0,0.408502]
[1734491693077,0.02007104,104820.0,104810.0,0.047702]
[1734491693785,0.02007104,104820.0,104810.0,0.408502]
[1734491697476,0.44445033,104820.0,104800.0,6.994e-05]
[1734491697688,0.47208329,104810.0,104800.0,6.994e-05]
[1734491697878,0.05765015,104790.0,104780.0,0.00143133]
[1734491698082,0.05765015,104790.0,104770.0,0.408521]
[1734491698083,0.41645797,104790.0,104770.0,0.408521]
[1734491698284,0.0727,104780.0,104770.0,0.047721]
[1734491698486,0.54480029,104780.0,104760.0,0.0005]
[1734491698882,0.54480029,104780.0,104770.0,0.00010177]
[1734491699082,0.47210029,104780.0,104770.0,0.00010177]
[1734491704593,0.01477398,104780.0,104770.0,0.04782177]
[1734491704891,0.06357929,104780.0,104770.0,0.00010177]
[1734491705390,0.06357929,104780.0,104770.0,0.04782377]
[1734491705590,0.408514,104790.0,104770.0,0.04782377]
[1734491705787,0.47209329,104790.0,104770.0,0.04782377]
[1734491705989,0.06357929,104780.0,104770.0,0.04782377]
[1734491707080,0.13037929,104780.0,104770.0,0.04782377]
[1734491707281,0.13800929,104780.0,104770.0,0.04782377]
[1734491707998,0.27638629,104780.0,104770.0,0.00010177]
[1734491708294,0.63718629,104780.0,104770.0,0.00010177]
[1734491708493,0.64617629,104780.0,104770.0,0.00010177]
[1734491709191,0.71577629,104780.0,104770.0,0.00010177]
[1734491710196,0.72340629,104780.0,104770.0,0.00010177]
[1734491710691,0.36260629,104780.0,104770.0,0.00010177]
[1734491711395,0.25131,104780.0,104770.0,0.04782377]
[1734491711695,0.18171,104780.0,104770.0,0.04782377]
[1734491712297,0.24528929,104780.0,104770.0,0.04782377]
[1734491712597,0.18171,104780.0,104770.0,0.04782377]
[1734491715301,0.24528929,104780.0,104770.0,0.04782377]
[1734491715692,0.24528929,104780.0,104770.0,0.00010177]
[1734491715991,0.29300729,104780.0,104770.0,0.00010177]
[1734491716193,0.18171,104780.0,104770.0,0.00010177]
[1734491716388,0.18171,104780.0,104770.0,0.40862377]
[1734491716590,0.18171,104780.0,104770.0,0.48112377]
[1734491716795,0.18171,104780.0,104770.0,0.54470306]
[1734491716995,0.18171,104780.0,104770.0,0.546612]
[1734491717399,0.18171,104780.0,104770.0,0.48303271]
[1734491719507,0.18171,104780.0,104770.0,0.49303271]
[1734491719806,0.18171,104780.0,104770.0,0.556612]
[1734491722597,0.18171,104780.0,104770.0,0.856612]
[1734491722802,0.0714,104810.0,104800.0,0.047709]
[1734491723007,0.0714,104810.0,104800.0,0.057709]
[1734491723195,0.0714,104810.0,104800.0,0.01]
[1734491723196,0.15021167,104810.0,104800.0,0.01]
[1734491723398,0.55871567,104810.0,104800.0,0.01]
[1734491723999,0.58084567,104810.0,104800.0,0.01]
[1734491724207,0.58847567,104810.0,104800.0,0.01]
[1734491726401,0.88847567,104810.0,104800.0,0.01]
[1734491726607,0.047711,104800.0,104780.0,0.047717]
[1734491726809,0.49847929,104790.0,104780.0,0.047717]
[1734491727000,0.4349,104790.0,104780.0,0.047717]
[1734491729315,0.3608,104790.0,104780.0,0.047717]
[1734491730512,0.13487929,104800.0,104790.0,0.047713]
[1734491731614,0.49567929,104800.0,104790.0,0.047713]
[1734491731910,0.4321,104800.0,104790.0,0.047713]
[1734491735311,0.0713,104800.0,104790.0,0.047713]
[1734491735514,0.119009,104800.0,104790.0,0.047713]
[1734491735811,0.54338829,104800.0,104780.0,0.408517]
[1734491736208,0.54866829,104800.0,104780.0,0.047717]
[1734491737524,0.54866829,104800.0,104780.0,0.095431]
[1734491737816,0.07658,104800.0,104790.0,0.047713]
[1734491739312,0.00528,104800.0,104790.0,0.047713]
[1734491741320,0.01291,104800.0,104790.0,0.047713]
[1734491742918,0.48499829,104800.0,104780.0,0.408517]
[1734491743114,0.060619,104800.0,104780.0,0.408517]
[1734491743323,0.060619,104800.0,104780.0,0.047717]
[1734491743719,0.060619,104800.0,104780.0,0.408517]
[1734491744021,0.01291,104800.0,104790.0,0.047713]
[1734491745311,0.02054,104800.0,104790.0,0.047713]
[1734491746221,0.429051,104800.0,104780.0,0.408516]
[1734491746713,0.49263029,104800.0,104780.0,0.408516]
[1734491748218,0.49263029,104800.0,104780.0,0.45623]
[1734491748521,0.49263029,104800.0,104780.0,0.408514]
[1734491750921,0.49263029,104800.0,104780.0,0.3608]
[1734491751122,0.429051,104800.0,104790.0,0.047713]
[1734491752223,0.39073,104800.0,104790.0,0.047713]
[1734491760832,0.02993,104800.0,104790.0,0.54779229]
[1734491761040,0.02993,104800.0,104790.0,0.62219229]
[1734491761242,0.02993,104800.0,104790.0,0.558613]
[1734491762134,0.09350929,104800.0,104790.0,0.484213]
[1734491762427,0.16900929,104800.0,104790.0,0.0757]
[1734491762629,0.52980929,104800.0,104780.0,0.408517]
[1734491762824,0.46623,104800.0,104780.0,0.408517]
[1734491763335,0.513939,104800.0,104780.0,0.408517]
[1734491763639,0.588539,104800.0,104780.0,0.408517]
[1734491764036,0.227739,104800.0,104780.0,0.408517]
[1734491764243,0.65211829,104800.0,104780.0,0.408517]
[1734491764846,0.72581829,104800.0,104780.0,0.047717]
[1734491765743,0.67217117,104800.0,104780.0,0.047717]
[1734491766938,0.68791117,104800.0,104780.0,0.047717]
[1734491768647,0.57662288,104800.0,104790.0,0.047713]
[1734491768838,0.50292288,104800.0,104790.0,0.047713]
[1734491769543,0.37654,104800.0,104790.0,0.047713]
[1734491769743,0.01574,104800.0,104790.0,0.47209229]
[1734491770245,0.44011929,104800.0,104780.0,0.3608]
[1734491770438,0.48782829,104800.0,104780.0,0.408517]
[1734491771842,0.48782829,104800.0,104780.0,0.047717]
[1734491774645,0.06357929,104790.0,104770.0,0.59927962]
[1734491774841,0.3608,104780.0,104770.0,0.04972971]
[1734491775037,0.408518,104780.0,104770.0,0.04972971]
[1734491775342,0.3608,104780.0,104770.0,0.04972971]
[1734491776344,0.620814,104790.0,104770.0,0.04972971]
[1734491776345,0.260014,104790.0,104770.0,0.04972971]
[1734491777350,0.620814,104790.0,104770.0,0.04972971]
[1734491777953,1e-06,104790.0,104770.0,0.113309]
[1734491778157,0.01574,104800.0,104790.0,0.047713]
[1734491778452,0.32367529,104830.0,104790.0,0.57297929]
[1734491778654,0.32367529,104830.0,104810.0,0.3608]
[1734491779450,0.3560387,104830.0,104810.0,0.3608]
[1734491779654,0.3781787,104830.0,104820.0,0.01]
[1734491783246,0.3781787,104830.0,104820.0,0.057699]
[1734491784046,0.31459941,104830.0,104820.0,0.057699]
[1734491784450,0.26690341,104830.0,104820.0,0.057699]
[1734491784645,0.03582483,104830.0,104820.0,0.41858873]
[1734491784845,0.03582483,104830.0,104820.0,0.48216802]
[1734491785138,0.02915483,104830.0,104820.0,0.62666802]
[1734491786147,0.02915483,104830.0,104820.0,0.56308873]
[1734491787152,0.02915483,104830.0,104820.0,0.62666802]
[1734491787346,0.02915483,104830.0,104820.0,0.92666802]
[1734491787551,0.00011661,104840.0,104830.0,0.047695]
[1734491787753,0.00011661,104840.0,104830.0,0.47207429]
[1734491788855,0.01547661,104840.0,104830.0,0.47207429]
[1734491790048,0.01547661,104840.0,104830.0,0.77207429]
[1734491791957,0.02962602,104840.0,104830.0,0.408495]
[1734491792157,0.02962602,104840.0,104830.0,0.3608]
[1734491793759,0.02962602,104840.0,104830.0,0.408495]
[1734491795155,0.02962602,104840.0,104830.0,0.47207429]
[1734491796361,0.01547661,104840.0,104830.0,0.47207429]
[1734491797560,0.01547661,104840.0,104830.0,0.77207429]
[1734491799158,0.01380622,104850.0,104830.0,0.77207429]
[1734491799358,0.07977,104870.0,104860.0,0.047681]
[1734491799560,0.0190605,104880.0,104860.0,0.47206029]
[1734491799753,0.555268,104890.0,104870.0,0.3608]
[1734491799754,0.626328,104890.0,104870.0,0.3608]
[1734491799954,0.625568,104890.0,104870.0,0.3608]
[1734491800157,0.62567009,104890.0,104880.0,8.375e-05]
[1734491800466,0.64805268,104890.0,104880.0,8.375e-05]
[1734491801055,0.65472268,104890.0,104880.0,8.375e-05]
[1734491801765,0.29392268,104890.0,104880.0,8.375e-05]
[1734491803058,1.10063191,104890.0,104850.0,0.3608]
[1734491803253,0.11126329,104860.0,104840.0,0.057689]
[1734491803459,0.047684,104860.0,104840.0,0.418489]
[1734491803761,0.0725,104850.0,104840.0,0.418489]
[1734491804156,0.0725,104850.0,104840.0,0.41860845]
[1734491804960,0.18376529,104850.0,104840.0,0.37091945]
[1734491805161,0.18376529,104850.0,104840.0,0.01011945]
[1734491805555,0.54456529,104850.0,104840.0,0.01011945]
[1734491805869,0.60814458,104850.0,104840.0,0.01011945]
[1734491806061,0.11126929,104840.0,104830.0,0.4099246]
[1734491807272,0.11126929,104840.0,104830.0,0.3608]
[1734491807460,0.047695,104830.0,104820.0,0.047698]
[1734491807666,0.54707429,104830.0,104820.0,0.047698]
[1734491808273,0.075,104830.0,104820.0,0.047698]
[1734491809266,0.047692,104840.0,104820.0,0.47207729]
[1734491809462,0.047692,104840.0,104830.0,0.047695]
[1734491809777,0.11127129,104840.0,104820.0,0.408499]
[1734491809965,0.11127429,104830.0,104820.0,0.408499]
[1734491810872,0.047695,104830.0,104820.0,0.408499]
[1734491815776,0.047965,104830.0,104820.0,0.408499]
[1734491816079,0.047965,104830.0,104820.0,0.047699]
[1734491817070,0.0654355,104830.0,104820.0,0.047699]
[1734491818378,0.0721055,104830.0,104820.0,0.047699]
[1734491819066,0.13568479,104830.0,104820.0,0.047699]
[1734491820377,0.0477,104820.0,104810.0,0.3608]
[1734491820569,0.11127929,104820.0,104810.0,0.3608]
[1734491820773,0.4580105,104830.0,104810.0,0.408502]
[1734491820774,0.20848579,104830.0,104810.0,0.408502]
[1734491820969,0.56928579,104830.0,104810.0,0.408502]
[1734491821174,0.5057065,104830.0,104810.0,0.408502]
[1734491821578,0.1494465,104830.0,104820.0,0.0477]
[1734491822079,0.21302579,104830.0,104820.0,0.0477]
[1734491823084,0.21302579,104830.0,104810.0,0.3608]
[1734491823085,0.21302579,104830.0,104810.0,0.408503]
[1734491823478,0.21302579,104830.0,104820.0,0.3608]
[1734491823683,0.14022579,104830.0,104820.0,0.4085]
[1734491823983,0.14022579,104830.0,104820.0,0.0477]
[1734491824882,0.14022579,104830.0,104820.0,0.4085]
[1734491825178,0.0766465,104830.0,104820.0,0.4085]
[1734491825675,0.0289505,104830.0,104820.0,0.4085]
[1734491825875,0.0766455,104830.0,104820.0,0.4085]
[1734491826474,0.0805855,104830.0,104820.0,0.4085]
[1734491826978,0.0328905,104830.0,104820.0,0.4085]
[1734491828287,0.01542,104830.0,104820.0,0.47207929]
[1734491829081,0.00875,104830.0,104820.0,0.47207929]
[1734491830283,0.00875,104830.0,104820.0,0.4085]
[1734491830787,0.00875,104830.0,104820.0,0.4185]
[1734491832180,0.00875,104830.0,104820.0,0.48207929]
[1734491832381,0.00121437,104830.0,104820.0,0.48207929]
[1734491832683,0.01743764,104850.0,104840.0,0.047691]
[1734491832877,0.02074765,104860.0,104840.0,0.779291]
[1734491833077,0.02074765,104860.0,104850.0,0.3608]
[1734491833276,0.03782056,104860.0,104850.0,0.3608]
[1734491833485,0.02091765,104860.0,104850.0,0.3608]
[1734491833687,0.13217894,104860.0,104840.0,0.418491]
[1734491833980,0.11126529,104850.0,104840.0,0.3708]
[1734491836783,0.11126529,104850.0,104840.0,0.01]
[1734491836985,0.47206529,104850.0,104840.0,0.01]
[1734491837180,0.53564458,104850.0,104840.0,0.01]
[1734491837381,0.47206529,104850.0,104840.0,0.01]
[1734491838389,0.17484458,104850.0,104840.0,0.01]
[1734491839092,0.11126529,104850.0,104840.0,0.057691]
[1734491839285,0.47206529,104850.0,104840.0,0.057691]
[1734491839486,0.83564458,104850.0,104820.0,0.485899]
[1734491839682,0.11127429,104830.0,104820.0,0.01]
[1734491840098,0.11127429,104830.0,104810.0,0.492103]
[1734491840099,0.0477,104820.0,104810.0,0.492103]
[1734491840389,0.11127929,104820.0,104810.0,0.492103]
[1734491842086,0.0477,104820.0,104810.0,0.492103]
[1734491846582,0.06516149,104820.0,104810.0,0.492103]
[1734491847683,0.12874078,104820.0,104810.0,0.4444]
[1734491847893,0.19232007,104820.0,104810.0,0.01]
[1734491848097,0.55312007,104820.0,104810.0,0.01]
[1734491848295,0.55322665,104820.0,104810.0,0.01]
[1734491848593,0.047709,104800.0,104790.0,0.483613]
[1734491849304,0.25788529,104810.0,104790.0,0.483613]
[1734491854887,0.21017929,104810.0,104790.0,0.483613]
[1734491855083,0.047709,104800.0,104790.0,0.483613]
[1734491855385,0.047718,104780.0,104740.0,0.408536]
[1734491855585,0.047718,104780.0,104740.0,0.121736]
[1734491855586,0.06357929,104750.0,104740.0,0.121736]
[1734491855787,0.47211029,104760.0,104740.0,0.121736]
[1734491856587,0.47211029,104760.0,104740.0,0.074]
[1734491856798,0.047731,104760.0,104750.0,0.047732]
[1734491857701,0.408531,104760.0,104750.0,0.047732]
[1734491857998,0.48960958,104760.0,104750.0,0.047732]
[1734491859399,0.48960958,104760.0,104740.0,0.482535]
[1734491859599,0.42603029,104760.0,104740.0,0.482535]
[1734491859899,0.42651029,104760.0,104740.0,0.482535]
[1734491860283,0.42651029,104760.0,104750.0,0.0005]
[1734491861294,0.42651029,104760.0,104740.0,0.482535]
[1734491861693,0.06571029,104760.0,104740.0,0.482535]
[1734491862298,0.06571029,104760.0,104750.0,0.0005]
[1734491862889,0.00048,104760.0,104750.0,0.47261129]
[1734491863089,0.00048,104760.0,104750.0,0.61781129]
[1734491863300,0.00048,104760.0,104750.0,0.553732]
[1734491863502,0.00716,104760.0,104750.0,0.553732]
[1734491863794,0.00716,104760.0,104750.0,0.192932]
[1734491864293,0.00716,104760.0,104750.0,0.553732]
[1734491865992,0.00716,104760.0,104750.0,0.563732]
[1734491866592,0.07073929,104760.0,104750.0,0.563732]
[1734491867192,0.00716,104760.0,104750.0,0.563732]
[1734491871006,0.07073929,104760.0,104750.0,0.563732]
[1734491871302,0.11846829,104760.0,104750.0,0.01]
[1734491872700,0.19596829,104760.0,104750.0,0.01]
[1734491873402,0.19596829,104760.0,104750.0,0.057734]
[1734491874505,0.054889,104760.0,104750.0,0.057734]
[1734491875010,0.11846829,104760.0,104750.0,0.057734]
[1734491878402,0.00716,104760.0,104750.0,0.418534]
[1734491878798,0.00716,104760.0,104750.0,0.057734]
[1734491881208,0.00716,104760.0,104750.0,0.418534]
[1734491882911,0.00048,104760.0,104750.0,0.418534]
[1734491885404,0.00048,104760.0,104750.0,0.48211329]
[1734491885609,0.46065078,104780.0,104770.0,0.047725]
[1734491886202,0.47999321,104780.0,104770.0,0.047725]
[1734491886409,0.46065078,104780.0,104770.0,0.047725]
[1734491886608,0.01584033,104780.0,104770.0,0.047725]
[1734491886906,0.0005,104780.0,104770.0,0.120925]
[1734491887311,0.11179929,104780.0,104770.0,0.047725]
[1734491887610,0.47259929,104780.0,104760.0,0.559528]
[1734491887911,0.11179929,104780.0,104760.0,0.559528]
[1734491888109,0.11179929,104780.0,104760.0,0.198728]
[1734491888502,0.04822,104780.0,104760.0,0.198728]
[1734491888700,0.0005,104780.0,104770.0,0.047725]
[1734491894105,0.0005,104780.0,104770.0,0.408525]
[1734491897107,0.0005,104780.0,104770.0,0.47210429]
[1734491897308,0.00143213,104790.0,104780.0,0.04772]
[1734491897612,0.00143213,104790.0,104780.0,0.48702]
[1734491898716,0.00160213,104790.0,104780.0,0.48702]
[1734491899508,0.00017,104790.0,104780.0,0.48702]
[1734491902912,0.00017,104790.0,104780.0,0.85059929]
[1734491903112,0.07800658,104820.0,104810.0,0.047706]
[1734491903308,0.00010658,104820.0,104810.0,0.047706]
[1734491903515,0.00010658,104820.0,104810.0,0.121406]
[1734491904013,0.00010658,104820.0,104810.0,0.482206]
[1734491904220,0.00060658,104820.0,104810.0,0.482206]
[1734491905322,0.00010658,104820.0,104810.0,0.482206]
[1734491906318,0.00060658,104820.0,104810.0,0.482206]
[1734491908316,0.00010658,104820.0,104810.0,0.482206]
[1734491909615,0.00010658,104820.0,104810.0,0.13682163]
[1734491909821,0.00010658,104820.0,104810.0,0.49762163]
[1734491910212,0.00010658,104820.0,104810.0,0.408506]
[1734491910624,0.47218887,104820.0,104800.0,0.04771]
[1734491910821,0.0788,104810.0,104800.0,0.04771]
[1734491911326,0.00010658,104820.0,104810.0,0.047706]
[1734491913030,0.06368587,104820.0,104810.0,0.047706]
[1734491914027,0.47218787,104820.0,104790.0,0.5108]
[1734491914230,0.1524,104810.0,104800.0,0.04771]
[1734491915429,0.62448529,104810.0,104800.0,0.04771]
[1734491916020,0.1524,104810.0,104800.0,0.04771]
[1734491916832,0.00010658,104820.0,104810.0,0.047706]
[1734491917132,0.14850658,104820.0,104810.0,0.047706]
[1734491918626,0.00010658,104820.0,104810.0,0.408506]
[1734491923840,0.00637658,104820.0,104810.0,0.408506]
[1734491925326,0.06995587,104820.0,104810.0,0.047706]
[1734491926139,0.00637658,104820.0,104810.0,0.047706]
[1734491927440,0.00637658,104820.0,104810.0,0.408506]
[1734491927633,0.00637658,104820.0,104810.0,0.47208529]
[1734491927830,0.00637658,104820.0,104810.0,0.408506]
[1734491928030,0.00637658,104820.0,104810.0,0.418506]
[1734491928248,0.00637658,104820.0,104810.0,0.48208529]
[1734491928440,0.00010658,104820.0,104810.0,0.48208529]
[1734491929444,0.0005,104840.0,104830.0,0.047698]
[1734491929649,0.0005,104840.0,104830.0,0.635198]
[1734491930237,0.38596227,104850.0,104830.0,0.5875]
[1734491930440,0.38596227,104850.0,104840.0,0.047693]
[1734491930833,0.37968227,104850.0,104840.0,0.047693]
[1734491932351,0.38597227,104850.0,104840.0,0.047693]
[1734491932535,0.40173001,104850.0,104840.0,0.047693]
[1734491932739,0.4653093,104850.0,104840.0,0.047693]
[1734491935141,0.21791774,104850.0,104840.0,0.047693]
[1734491935341,0.15001742,104880.0,104850.0,0.047688]
[1734491935342,0.01,104880.0,104850.0,0.047688]
[1734491935548,0.01,104880.0,104870.0,0.408479]
[1734491935743,0.01,104880.0,104860.0,0.5162]
[1734491935954,0.06357929,104870.0,104860.0,0.483884]
[1734491936249,0.06357929,104870.0,104850.0,0.408489]
[1734491936250,0.11125929,104870.0,104850.0,0.408489]
[1734491936450,0.14137929,104860.0,104850.0,0.408489]
[1734491936642,0.0778,104860.0,104850.0,0.40857545]
[1734491938450,0.04776822,104870.0,104850.0,0.40857545]
[1734491941246,8.822e-05,104870.0,104860.0,0.408485]
[1734491941451,0.04776822,104870.0,104860.0,0.408485]
[1734491941955,0.04776822,104870.0,104860.0,0.3608]
[1734491942154,0.047685,104860.0,104850.0,0.36088645]
[1734491944247,0.048185,104860.0,104850.0,0.36088645]
[1734491949650,0.06253527,104860.0,104850.0,0.36088645]
[1734491950548,0.06253527,104860.0,104850.0,0.40857245]
[1734491953261,0.06203527,104860.0,104850.0,0.40857245]
[1734491954655,0.01435027,104860.0,104850.0,0.40857245]
[1734491954960,0.06727506,104870.0,104850.0,0.54575174]
[1734491955265,0.06677506,104870.0,104860.0,0.3608]
[1734491955970,0.06677506,104870.0,104850.0,0.48217245]
[1734491956466,0.06727506,104870.0,104850.0,0.48217245]
[1734491957260,0.06677506,104870.0,104850.0,0.48217245]
[1734491957767,0.01909606,104870.0,104860.0,0.408481]
[1734491957962,0.03344036,104870.0,104860.0,0.408481]
[1734491958266,0.01959606,104870.0,104860.0,0.408481]
[1734491959367,0.01909606,104870.0,104860.0,0.408481]
[1734491963066,0.03395121,104870.0,104860.0,0.408481]
[1734491963256,0.01494337,104870.0,104860.0,0.408481]
[1734491963863,0.01494337,104870.0,104860.0,0.47206029]
[1734491969361,0.01494337,104870.0,104860.0,0.408481]
[1734491969569,0.01494337,104870.0,104850.0,0.48216945]
[1734491969871,0.01494337,104870.0,104860.0,0.408481]
[1734491974174,0.01494337,104870.0,104860.0,0.47206029]
[1734491975677,0.01494337,104870.0,104860.0,0.54866029]
[1734491976078,0.01494337,104870.0,104860.0,0.62556029]
[1734491980270,0.01494337,104870.0,104860.0,0.64023856]
[1734491980681,0.01494337,104870.0,104860.0,0.57665927]
[1734491980972,0.01494337,104870.0,104860.0,0.50005927]
[1734491981273,0.01494337,104870.0,104860.0,0.485381]
[1734491981874,0.01494337,104870.0,104860.0,0.54896029]
[1734491983676,0.01494337,104870.0,104860.0,0.62326029]
[1734491988480,8.822e-05,104870.0,104860.0,0.62326029]
[1734491990073,8.822e-05,104870.0,104860.0,0.63326029]
[1734492001986,8.822e-05,104870.0,104860.0,0.65210516]
[1734492002494,0.0005,104890.0,104860.0,0.99978616]
[1734492002692,0.0005,104890.0,104880.0,0.47205129]
[1734492003198,0.0005,104890.0,104880.0,0.83285129]
[1734492003392,0.177,104900.0,104880.0,0.83285129]
[1734492003686,0.177,104900.0,104890.0,0.408467]
[1734492004085,0.28824229,104900.0,104880.0,0.408471]
[1734492004391,0.149,104890.0,104880.0,0.408471]
[1734492005291,0.047672,104880.0,104870.0,0.3608]
[1734492005495,0.127272,104880.0,104870.0,0.3608]
[1734492005681,0.49085129,104880.0,104870.0,0.2391]
[1734492005888,0.788072,104880.0,104860.0,0.418479]
[1734492006084,0.1485,104870.0,104860.0,0.418479]
[1734492011490,0.16139207,104870.0,104860.0,0.418479]
[1734492013798,0.1485,104870.0,104860.0,0.418479]
[1734492017396,0.1485,104870.0,104860.0,0.48205829]
[1734492017598,0.075,104870.0,104860.0,0.48205829]
[1734492017798,0.075,104870.0,104860.0,0.492879]
[1734492020608,0.11103046,104880.0,104860.0,0.492879]
[1734492020905,0.11103046,104880.0,104870.0,0.047679]
[1734492021108,0.09211883,104880.0,104870.0,0.047679]
[1734492021297,0.15569812,104880.0,104860.0,0.4452]
[1734492021499,0.20337512,104880.0,104860.0,0.492883]
[1734492021698,0.0807,104870.0,104860.0,0.492883]
[1734492022602,0.26805829,104870.0,104860.0,0.057683]
[1734492023712,0.62885829,104870.0,104860.0,0.057683]
[1734492025397,0.92885829,104870.0,104860.0,0.057683]
[1734492025601,0.62885829,104870.0,104860.0,0.057683]
[1734492025999,0.92885829,104870.0,104860.0,0.01]
[1734492027011,0.047684,104860.0,104850.0,0.04777345]
[1734492027213,0.54666329,104860.0,104850.0,0.04777345]
[1734492031516,0.483084,104860.0,104850.0,0.04777345]
[1734492031910,0.4961446,104860.0,104850.0,0.04777345]
[1734492032510,0.3738606,104860.0,104850.0,0.04777345]
[1734492034013,0.48512389,104860.0,104850.0,0.04777345]
[1734492034413,0.56002389,104860.0,104850.0,0.04777345]
[1734492034716,0.56002389,104860.0,104850.0,8.645e-05]
[1734492035214,0.4964446,104860.0,104850.0,0.04777445]
[1734492035520,0.56002389,104860.0,104850.0,0.04777445]
[1734492035912,0.86002389,104860.0,104850.0,8.645e-05]
[1734492036119,0.56002389,104860.0,104850.0,8.645e-05]
[1734492039115,0.4215446,104860.0,104850.0,0.04777445]
[1734492039312,0.3738606,104860.0,104850.0,0.04777445]
[1734492039522,0.38004359,104870.0,104860.0,0.047684]
[1734492040012,0.01924359,104870.0,104860.0,0.047684]
[1734492041221,0.08282288,104870.0,104860.0,0.047684]
[1734492042826,0.047679,104870.0,104850.0,0.43588645]
[1734492043027,0.047679,104870.0,104860.0,0.047683]
[1734492043220,0.11125829,104870.0,104860.0,0.047683]
[1734492043821,0.47205829,104870.0,104860.0,0.047683]
[1734492045923,0.55055829,104870.0,104860.0,0.047683]
[1734492049430,0.408479,104870.0,104860.0,0.047683]
[1734492051835,0.47205829,104870.0,104860.0,0.047683]
[1734492052538,0.408479,104870.0,104860.0,0.047683]
[1734492053932,0.42726632,104870.0,104860.0,0.047683]
[1734492055532,0.06646632,104870.0,104860.0,0.047683]
[1734492056440,0.42726632,104870.0,104860.0,0.047683]
[1734492056839,0.06646632,104870.0,104860.0,0.047683]
[1734492058044,0.10811358,104870.0,104860.0,0.047683]
[1734492059340,0.08932626,104870.0,104860.0,0.047683]
[1734492060646,0.45012626,104870.0,104850.0,0.36088645]
[1734492060850,0.45012626,104870.0,104850.0,0.40857245]
[1734492061151,0.45012626,104870.0,104860.0,0.047684]
[1734492063454,0.3608,104870.0,104860.0,0.047684]
[1734492063750,0.38025581,104870.0,104860.0,0.047684]
[1734492063947,0.3608,104870.0,104860.0,0.08933126]
[1734492064252,0.3608,104870.0,104860.0,0.123984]
[1734492065447,0.40244726,104870.0,104860.0,0.123984]
[1734492066445,0.04164726,104870.0,104860.0,0.123984]
[1734492067348,0.40244726,104870.0,104860.0,0.123984]
[1734492068348,0.45012626,104870.0,104850.0,0.40857245]
[1734492068554,0.52792626,104870.0,104850.0,0.41750683]
[1734492068854,0.52792626,104870.0,104850.0,0.05670683]
[1734492069056,0.04164726,104860.0,104850.0,0.05670683]
[1734492069253,0.04164726,104860.0,104850.0,0.04777245]
[1734492071151,0.52792626,104870.0,104850.0,0.04777245]
[1734492071749,0.52792626,104870.0,104850.0,0.04777045]
[1734492072054,0.52792626,104870.0,104860.0,0.047683]
[1734492090169,0.486279,104870.0,104860.0,0.047683]
[1734492090466,0.52792626,104870.0,104860.0,0.047683]
[1734492098377,0.4386,104870.0,104860.0,0.047683]
[1734492098578,0.47013378,104880.0,104860.0,0.05661738]
[1734492098879,0.51178104,104880.0,104870.0,0.047679]
[1734492099081,0.51178104,104880.0,104870.0,0.05661338]
[1734492099377,0.51178104,104880.0,104870.0,0.047679]
[1734492100370,0.15098104,104880.0,104870.0,0.047679]
[1734492100576,0.01290283,104880.0,104870.0,0.08932626]
[1734492100874,0.45062126,104890.0,104880.0,0.047674]
[1734492101479,0.45012126,104890.0,104880.0,0.047674]
[1734492101874,0.047675,104880.0,104870.0,0.047677]
[1734492102078,0.45012226,104880.0,104870.0,0.047677]
[1734492106586,0.40244726,104880.0,104870.0,0.047677]
[1734492109394,0.40244726,104880.0,104870.0,0.114077]
[1734492109888,0.40244726,104880.0,104870.0,0.15572426]
[1734492110079,0.3608,104880.0,104870.0,0.15572426]
[1734492110278,0.40244726,104880.0,104870.0,0.15572426]
[1734492110489,0.52823072,104900.0,104870.0,0.55817152]
[1734492110676,0.0005,104890.0,104880.0,0.52012126]
[1734492110884,0.0005,104890.0,104880.0,0.58962126]
[1734492111081,0.0005,104890.0,104880.0,0.59855564]
[1734492111282,0.0005,104890.0,104880.0,0.58962126]
[1734492111689,0.12056945,104900.0,104890.0,0.04767]
[1734492111889,0.12056945,104900.0,104890.0,0.08931726]
[1734492113178,0.1,104900.0,104890.0,0.08931726]
[1734492113379,0.04767,104890.0,104870.0,0.41741238]
[1734492113594,0.08932126,104880.0,104870.0,0.408478]
[1734492114291,0.047674,104880.0,104870.0,0.408478]
[1734492114480,0.52211826,104890.0,104870.0,0.047678]
[1734492115687,0.52161826,104890.0,104870.0,0.047678]
[1734492115988,0.52161826,104890.0,104870.0,0.408478]
[1734492116188,0.52161826,104890.0,104870.0,0.047678]
[1734492116389,0.52161826,104890.0,104870.0,0.408478]
[1734492117389,0.52161826,104890.0,104880.0,0.047674]
[1734492118283,0.16081826,104890.0,104880.0,0.047674]
[1734492118483,0.52161826,104890.0,104880.0,0.047674]
[1734492119693,0.5334049,104890.0,104880.0,0.047674]